[Event "Late-Titled-Tuesday-Blitz-May-07-2024"]
[Site "Chess.com"]
[Date "2024.05.07"]
[Round "4"]
[White "Felix-Rose"]
[Black "ahmedkandiliii"]
[Result "0-1"]
[WhiteElo "2233"]
[BlackElo "2648"]
[TimeControl "180+1"]
[EndTime "14:39:19 PDT"]
[Termination "ahmedkandiliii won by checkmate"]

1. e4 {[%clk 0:02:59.8]} 1... e5 {[%clk 0:02:59.9]} 2. Nf3 {[%clk 0:02:59.9]}
2... Nc6 {[%clk 0:03:00.5]} 3. Bb5 {[%clk 0:02:59.8]} 3... a6 {[%clk 0:03:00.5]}
4. Ba4 {[%clk 0:03:00]} 4... Nf6 {[%clk 0:03:01]} 5. O-O {[%clk 0:03:00.2]} 5...
Nxe4 {[%clk 0:03:00.8]} 6. d4 {[%clk 0:02:58.4]} 6... exd4 {[%clk 0:03:01.7]} 7.
Re1 {[%clk 0:02:52]} 7... d5 {[%clk 0:03:01.5]} 8. Nxd4 {[%clk 0:02:46.6]} 8...
Bd6 {[%clk 0:03:00.6]} 9. Nxc6 {[%clk 0:02:33.9]} 9... Bxh2+ {[%clk 0:03:00.2]}
10. Kf1 {[%clk 0:02:31.2]} 10... Qh4 {[%clk 0:03:01.1]} 11. Rxe4+ {[%clk
0:02:14.1]} 11... dxe4 {[%clk 0:03:00.2]} 12. Qd8+ {[%clk 0:02:12.8]} 12... Qxd8
{[%clk 0:02:59.2]} 13. Nxd8+ {[%clk 0:02:13]} 13... Kxd8 {[%clk 0:03:00.1]} 14.
Nc3 {[%clk 0:02:05.8]} 14... Bf5 {[%clk 0:02:54.7]} 15. Bb3 {[%clk 0:01:56.7]}
15... f6 {[%clk 0:02:50.9]} 16. Be3 {[%clk 0:01:50.8]} 16... Bd6 {[%clk
0:02:49.9]} 17. Bd5 {[%clk 0:01:43.8]} 17... c6 {[%clk 0:02:44.8]} 18. Bxe4
{[%clk 0:01:42.9]} 18... Bxe4 {[%clk 0:02:41.7]} 19. Nxe4 {[%clk 0:01:43.2]}
19... Kc7 {[%clk 0:02:27.7]} 20. a4 {[%clk 0:01:01.8]} 20... Rhe8 {[%clk
0:02:23.8]} 21. Nxd6 {[%clk 0:00:45]} 21... Kxd6 {[%clk 0:02:22.3]} 22. Rd1+
{[%clk 0:00:45.9]} 22... Kc7 {[%clk 0:02:21.4]} 23. a5 {[%clk 0:00:45.9]} 23...
c5 {[%clk 0:02:08.1]} 24. Bxc5 {[%clk 0:00:44.1]} 24... Kc6 {[%clk 0:02:08.1]}
25. Bb6 {[%clk 0:00:43.5]} 25... Re6 {[%clk 0:02:03.8]} 26. Rd3 {[%clk
0:00:41.5]} 26... Rae8 {[%clk 0:02:00.4]} 27. Rc3+ {[%clk 0:00:39.6]} 27... Kd6
{[%clk 0:01:59.9]} 28. g3 {[%clk 0:00:37.7]} 28... Ke5 {[%clk 0:01:28.1]} 29.
Rc5+ {[%clk 0:00:33.5]} 29... Kd6 {[%clk 0:01:20.9]} 30. b4 {[%clk 0:00:33.6]}
30... Re1+ {[%clk 0:01:13.5]} 31. Kg2 {[%clk 0:00:33.9]} 31... Ke6 {[%clk
0:01:14.1]} 32. Rc7 {[%clk 0:00:27.9]} 32... Re7 {[%clk 0:01:14.1]} 33. Rc4
{[%clk 0:00:23.9]} 33... Kf7 {[%clk 0:01:13.1]} 34. Rc8 {[%clk 0:00:21.3]} 34...
Rc1 {[%clk 0:01:07.7]} 35. c4 {[%clk 0:00:17]} 35... Kg6 {[%clk 0:01:04.3]} 36.
Kh3 {[%clk 0:00:15.2]} 36... Re4 {[%clk 0:01:02.4]} 37. c5 {[%clk 0:00:14.2]}
37... Rxb4 {[%clk 0:01:02.3]} 38. Rc7 {[%clk 0:00:13.3]} 38... h5 {[%clk
0:00:57.5]} 39. Rxb7 {[%clk 0:00:12.4]} 39... Rxc5 {[%clk 0:00:57.4]} 40. Ra7
{[%clk 0:00:09.2]} 40... Rc1 {[%clk 0:00:51.8]} 41. Rxa6 {[%clk 0:00:09.5]}
41... Rbb1 {[%clk 0:00:46.8]} 42. Ra8 {[%clk 0:00:09]} 42... Ra1 {[%clk
0:00:45.7]} 43. Be3 {[%clk 0:00:08.3]} 43... Rd1 {[%clk 0:00:40]} 44. a6 {[%clk
0:00:08.4]} 44... Kf5 {[%clk 0:00:33.1]} 45. a7 {[%clk 0:00:08.6]} 45... g5
{[%clk 0:00:32.2]} 46. Kg2 {[%clk 0:00:08.6]} 46... g4 {[%clk 0:00:29.7]} 47.
Rh8 {[%clk 0:00:08.9]} 47... Rg1+ {[%clk 0:00:28.8]} 48. Kh2 {[%clk 0:00:08.5]}
48... Rh1+ {[%clk 0:00:29.7]} 49. Kg2 {[%clk 0:00:08.4]} 49... Rag1# {[%clk
0:00:30.6]} 0-1

[Event "Late-Titled-Tuesday-Blitz-May-07-2024"]
[Site "Chess.com"]
[Date "2024.05.07"]
[Round "4"]
[White "schondeln"]
[Black "HaryKane"]
[Result "0-1"]
[WhiteElo "2365"]
[BlackElo "2539"]
[TimeControl "180+1"]
[EndTime "14:39:19 PDT"]
[Termination "HaryKane won on time"]

1. e4 {[%clk 0:03:00.9]} 1... d6 {[%clk 0:02:58.2]} 2. d4 {[%clk 0:03:00]} 2...
g6 {[%clk 0:02:57.7]} 3. Nc3 {[%clk 0:02:59.8]} 3... Bg7 {[%clk 0:02:56.8]} 4.
Be3 {[%clk 0:03:00.3]} 4... Nf6 {[%clk 0:02:53.5]} 5. Qd2 {[%clk 0:02:55.6]}
5... Ng4 {[%clk 0:02:50.3]} 6. Bg5 {[%clk 0:02:54.8]} 6... h6 {[%clk 0:02:48.4]}
7. Bh4 {[%clk 0:02:54.7]} 7... g5 {[%clk 0:02:44]} 8. Bg3 {[%clk 0:02:54.6]}
8... Nc6 {[%clk 0:02:42.1]} 9. Nge2 {[%clk 0:02:53.7]} 9... Nf6 {[%clk 0:02:36]}
10. f3 {[%clk 0:02:50.7]} 10... e6 {[%clk 0:02:05.3]} 11. h4 {[%clk 0:02:45.2]}
11... g4 {[%clk 0:01:57.4]} 12. O-O-O {[%clk 0:02:38.8]} 12... Qe7 {[%clk
0:01:43.9]} 13. Kb1 {[%clk 0:01:58]} 13... Bd7 {[%clk 0:01:30.4]} 14. d5 {[%clk
0:01:47.9]} 14... Ne5 {[%clk 0:01:16.3]} 15. Nd4 {[%clk 0:01:28.8]} 15... a6
{[%clk 0:00:58.2]} 16. f4 {[%clk 0:01:27.4]} 16... Ng6 {[%clk 0:00:51.8]} 17. h5
{[%clk 0:01:25.9]} 17... Nf8 {[%clk 0:00:44.4]} 18. dxe6 {[%clk 0:01:24.8]}
18... fxe6 {[%clk 0:00:43]} 19. e5 {[%clk 0:01:22.9]} 19... dxe5 {[%clk
0:00:37.8]} 20. fxe5 {[%clk 0:01:23.7]} 20... N6h7 {[%clk 0:00:36.2]} 21. Be2
{[%clk 0:01:03.5]} 21... O-O-O {[%clk 0:00:30.2]} 22. Qe3 {[%clk 0:01:03.6]}
22... Be8 {[%clk 0:00:19.4]} 23. Bxg4 {[%clk 0:00:58.6]} 23... Ng5 {[%clk
0:00:19.7]} 24. Bf4 {[%clk 0:00:51.4]} 24... Bd7 {[%clk 0:00:14.4]} 25. Ne4
{[%clk 0:00:47.2]} 25... Nfh7 {[%clk 0:00:12.5]} 26. Rhe1 {[%clk 0:00:39.6]}
26... Rhf8 {[%clk 0:00:11.2]} 27. g3 {[%clk 0:00:38.4]} 27... Kb8 {[%clk
0:00:10]} 28. a3 {[%clk 0:00:37.6]} 28... Bc8 {[%clk 0:00:08.6]} 29. Nxg5 {[%clk
0:00:31.4]} 29... hxg5 {[%clk 0:00:07.2]} 30. Qe4 {[%clk 0:00:31.3]} 30... gxf4
{[%clk 0:00:06.1]} 31. Qxh7 {[%clk 0:00:31]} 31... fxg3 {[%clk 0:00:04.9]} 32.
h6 {[%clk 0:00:29.5]} 32... Bf6 {[%clk 0:00:04.5]} 33. Qg6 {[%clk 0:00:23.3]}
33... Bxe5 {[%clk 0:00:01.3]} 34. Rxe5 {[%clk 0:00:21.5]} 34... g2 {[%clk
0:00:01.7]} 35. Be2 {[%clk 0:00:12.9]} 35... Rxd4 {[%clk 0:00:01.5]} 36. Rxd4
{[%clk 0:00:12.2]} 36... Rf1+ {[%clk 0:00:02.2]} 37. Bxf1 {[%clk 0:00:08.4]}
37... gxf1=Q+ {[%clk 0:00:03.1]} 38. Ka2 {[%clk 0:00:08.9]} 38... Qf2 {[%clk
0:00:02.3]} 39. Rc4 {[%clk 0:00:04.7]} 39... Qff6 {[%clk 0:00:02.2]} 40. Qxf6
{[%clk 0:00:00.5]} 40... Qxf6 {[%clk 0:00:03.1]} 41. Rh5 {[%clk 0:00:00.7]}
41... Qh8 {[%clk 0:00:02.7]} 42. h7 {[%clk 0:00:01.6]} 42... e5 {[%clk
0:00:03.2]} 43. Rg4 {[%clk 0:00:01.6]} 43... Bxg4 {[%clk 0:00:03.1]} 44. Rh4
{[%clk 0:00:01.4]} 44... Be6+ {[%clk 0:00:03.7]} 0-1

[Event "Late-Titled-Tuesday-Blitz-May-07-2024"]
[Site "Chess.com"]
[Date "2024.05.07"]
[Round "4"]
[White "MikeSailer"]
[Black "szachmistrz2500"]
[Result "0-1"]
[WhiteElo "2131"]
[BlackElo "2471"]
[TimeControl "180+1"]
[EndTime "14:39:20 PDT"]
[Termination "szachmistrz2500 won on time"]

1. d4 {[%clk 0:02:59.5]} 1... Nf6 {[%clk 0:02:45.4]} 2. Nf3 {[%clk 0:02:57.3]}
2... d5 {[%clk 0:02:44.2]} 3. Bf4 {[%clk 0:02:57.4]} 3... c5 {[%clk 0:02:42.7]}
4. e3 {[%clk 0:02:57.7]} 4... Qb6 {[%clk 0:02:41.3]} 5. Nc3 {[%clk 0:02:57.6]}
5... a6 {[%clk 0:02:41.5]} 6. Rb1 {[%clk 0:02:56.9]} 6... Nc6 {[%clk 0:02:40.1]}
7. Be2 {[%clk 0:02:50.8]} 7... Bf5 {[%clk 0:02:32.9]} 8. h3 {[%clk 0:02:46.7]}
8... e6 {[%clk 0:02:31.8]} 9. O-O {[%clk 0:02:43.7]} 9... cxd4 {[%clk
0:02:30.4]} 10. exd4 {[%clk 0:02:43.3]} 10... Be7 {[%clk 0:02:26.9]} 11. Bd3
{[%clk 0:02:30.6]} 11... Bxd3 {[%clk 0:02:23.1]} 12. Qxd3 {[%clk 0:02:28]} 12...
O-O {[%clk 0:02:24]} 13. a3 {[%clk 0:02:07.6]} 13... Rac8 {[%clk 0:02:20.1]} 14.
Ne2 {[%clk 0:02:04.9]} 14... Na5 {[%clk 0:02:17.6]} 15. c3 {[%clk 0:02:03.3]}
15... Nc4 {[%clk 0:02:16.2]} 16. Qc2 {[%clk 0:01:49.9]} 16... Ne4 {[%clk
0:02:08.7]} 17. Ne5 {[%clk 0:01:46.8]} 17... Nxe5 {[%clk 0:01:58.2]} 18. Bxe5
{[%clk 0:01:46.5]} 18... Bd6 {[%clk 0:01:55.8]} 19. Bxd6 {[%clk 0:01:45]} 19...
Qxd6 {[%clk 0:01:55.8]} 20. Qd3 {[%clk 0:01:34.3]} 20... b5 {[%clk 0:01:55.2]}
21. f3 {[%clk 0:00:53.5]} 21... Nf6 {[%clk 0:01:51.1]} 22. Qe3 {[%clk
0:00:51.1]} 22... Rc7 {[%clk 0:01:46]} 23. Nc1 {[%clk 0:00:50.3]} 23... a5
{[%clk 0:01:42.4]} 24. Nd3 {[%clk 0:00:50.5]} 24... Nd7 {[%clk 0:01:42]} 25. f4
{[%clk 0:00:48.7]} 25... Nb6 {[%clk 0:01:36.6]} 26. f5 {[%clk 0:00:47]} 26...
Nc4 {[%clk 0:01:35.4]} 27. Qf2 {[%clk 0:00:35.9]} 27... e5 {[%clk 0:01:34.1]}
28. Nxe5 {[%clk 0:00:32.5]} 28... Nxe5 {[%clk 0:01:34.1]} 29. dxe5 {[%clk
0:00:33.1]} 29... Qxe5 {[%clk 0:01:35]} 30. f6 {[%clk 0:00:30.6]} 30... Qxf6
{[%clk 0:01:28.6]} 31. Qxf6 {[%clk 0:00:30.1]} 31... gxf6 {[%clk 0:01:29.5]} 32.
Rxf6 {[%clk 0:00:30.5]} 32... Rd8 {[%clk 0:01:30.1]} 33. Rd1 {[%clk 0:00:23.6]}
33... Rc4 {[%clk 0:01:20.6]} 34. Ra6 {[%clk 0:00:15.3]} 34... b4 {[%clk
0:01:17.9]} 35. Rxa5 {[%clk 0:00:14.2]} 35... bxc3 {[%clk 0:01:17.1]} 36. bxc3
{[%clk 0:00:14.3]} 36... Rxc3 {[%clk 0:01:16.3]} 37. Rdxd5 {[%clk 0:00:11.6]}
37... Rxd5 {[%clk 0:01:13.4]} 38. Rxd5 {[%clk 0:00:10.9]} 38... Rxa3 {[%clk
0:01:14]} 39. Rd6 {[%clk 0:00:09.2]} 39... Kg7 {[%clk 0:01:14]} 40. Rc6 {[%clk
0:00:08.6]} 40... f6 {[%clk 0:01:14.3]} 41. Rb6 {[%clk 0:00:07.7]} 41... Kg6
{[%clk 0:01:14.7]} 42. Rb7 {[%clk 0:00:06.4]} 42... h5 {[%clk 0:01:15.2]} 43.
Kf2 {[%clk 0:00:05.4]} 43... Rc3 {[%clk 0:01:15.7]} 44. Rb6 {[%clk 0:00:04.3]}
44... h4 {[%clk 0:01:16.1]} 45. Rb5 {[%clk 0:00:03.9]} 45... f5 {[%clk 0:01:16]}
46. Rb4 {[%clk 0:00:03.4]} 46... Kg5 {[%clk 0:01:16.3]} 47. Rb8 {[%clk
0:00:03.7]} 47... Rc2+ {[%clk 0:01:15.2]} 48. Kf3 {[%clk 0:00:04.1]} 48... Rc3+
{[%clk 0:01:15.8]} 49. Kf2 {[%clk 0:00:04.7]} 49... Ra3 {[%clk 0:01:16.5]} 50.
Rg8+ {[%clk 0:00:03.7]} 50... Kf4 {[%clk 0:01:16.8]} 51. Rh8 {[%clk 0:00:03.1]}
51... Ra2+ {[%clk 0:01:17.2]} 52. Kg1 {[%clk 0:00:02]} 52... Kg3 {[%clk
0:01:17.5]} 53. Rg8+ {[%clk 0:00:02.7]} 53... Kf4 {[%clk 0:01:17.8]} 54. Kh2
{[%clk 0:00:03.3]} 54... Ke3 {[%clk 0:01:14.8]} 55. Rh8 {[%clk 0:00:03.5]} 55...
f4 {[%clk 0:01:15.1]} 56. Rxh4 {[%clk 0:00:03.6]} 56... f3 {[%clk 0:01:15.6]}
57. Rg4 {[%clk 0:00:03.6]} 57... f2 {[%clk 0:01:15.4]} 58. Rg3+ {[%clk
0:00:01.7]} 58... Ke2 {[%clk 0:01:15.4]} 59. Rf3 {[%clk 0:00:01.6]} 59... f1=Q
{[%clk 0:01:15.2]} 60. Rxf1 {[%clk 0:00:02.5]} 60... Kxf1 {[%clk 0:01:15.8]} 61.
h4 {[%clk 0:00:03]} 61... Kf2 {[%clk 0:01:15.7]} 62. Kh3 {[%clk 0:00:03.4]}
62... Ra4 {[%clk 0:01:12.6]} 63. h5 {[%clk 0:00:03.1]} 63... Rb4 {[%clk
0:01:12.5]} 64. g4 {[%clk 0:00:03.3]} 64... Kf3 {[%clk 0:01:11.7]} 65. Kh4
{[%clk 0:00:03.8]} 65... Rxg4+ {[%clk 0:01:11.2]} 0-1

[Event "Late-Titled-Tuesday-Blitz-May-07-2024"]
[Site "Chess.com"]
[Date "2024.05.07"]
[Round "4"]
[White "KaydenTroffChess"]
[Black "Annawel"]
[Result "1-0"]
[WhiteElo "2875"]
[BlackElo "2999"]
[TimeControl "180+1"]
[EndTime "14:39:21 PDT"]
[Termination "KaydenTroffChess won by resignation"]

1. d4 {[%clk 0:03:00.9]} 1... Nf6 {[%clk 0:02:58.7]} 2. Nf3 {[%clk 0:03:01.4]}
2... e6 {[%clk 0:02:58.5]} 3. Bf4 {[%clk 0:03:01.4]} 3... d5 {[%clk 0:02:55.9]}
4. e3 {[%clk 0:03:00.3]} 4... c5 {[%clk 0:02:56.4]} 5. Nc3 {[%clk 0:03:00.3]}
5... Bd6 {[%clk 0:02:48.9]} 6. dxc5 {[%clk 0:02:59]} 6... Bxc5 {[%clk
0:02:46.3]} 7. Nb5 {[%clk 0:02:55.6]} 7... Na6 {[%clk 0:02:46]} 8. Ne5 {[%clk
0:02:55.2]} 8... O-O {[%clk 0:02:38.7]} 9. c3 {[%clk 0:02:55.3]} 9... Ne4 {[%clk
0:02:26.6]} 10. Bd3 {[%clk 0:02:36.6]} 10... f6 {[%clk 0:02:25]} 11. Nf3 {[%clk
0:02:36.4]} 11... e5 {[%clk 0:02:24.7]} 12. Bg3 {[%clk 0:02:35.7]} 12... Be6
{[%clk 0:02:10.4]} 13. Nd2 {[%clk 0:02:28.6]} 13... Qb6 {[%clk 0:02:01.2]} 14.
a4 {[%clk 0:02:21.4]} 14... Rad8 {[%clk 0:01:59.3]} 15. Qc2 {[%clk 0:02:13.9]}
15... Bxe3 {[%clk 0:01:47.3]} 16. fxe3 {[%clk 0:02:05.3]} 16... Qxe3+ {[%clk
0:01:48.2]} 17. Be2 {[%clk 0:02:04.3]} 17... Nxg3 {[%clk 0:01:07.7]} 18. hxg3
{[%clk 0:02:03.3]} 18... Qxg3+ {[%clk 0:01:08.6]} 19. Kf1 {[%clk 0:01:55.5]}
19... f5 {[%clk 0:01:01.4]} 20. Qd3 {[%clk 0:01:44.7]} 20... Qxd3 {[%clk
0:00:59.9]} 21. Bxd3 {[%clk 0:01:44.3]} 21... Nc5 {[%clk 0:01:00.5]} 22. Bc2
{[%clk 0:01:42.6]} 22... a6 {[%clk 0:01:00]} 23. Na3 {[%clk 0:01:38.1]} 23... d4
{[%clk 0:00:55.1]} 24. cxd4 {[%clk 0:01:35.9]} 24... Rxd4 {[%clk 0:00:55.2]} 25.
Nf3 {[%clk 0:01:36.1]} 25... Rb4 {[%clk 0:00:52.9]} 26. Nxe5 {[%clk 0:01:27.5]}
26... Rxb2 {[%clk 0:00:50.9]} 27. Nd3 {[%clk 0:01:03.5]} 27... Rxc2 {[%clk
0:00:49.6]} 28. Nxc2 {[%clk 0:01:02.2]} 28... Nxd3 {[%clk 0:00:50.2]} 29. Ke2
{[%clk 0:00:58.3]} 29... Nc5 {[%clk 0:00:47]} 30. a5 {[%clk 0:00:56.1]} 30...
Bc4+ {[%clk 0:00:43.1]} 31. Kf2 {[%clk 0:00:51.9]} 31... Ne4+ {[%clk 0:00:42.7]}
32. Kf3 {[%clk 0:00:50.3]} 32... Bd5 {[%clk 0:00:41.9]} 33. Nb4 {[%clk 0:00:49]}
33... Be6 {[%clk 0:00:40.5]} 34. Rhd1 {[%clk 0:00:46.7]} 34... Kf7 {[%clk
0:00:39.5]} 35. Rac1 {[%clk 0:00:46.5]} 35... Kf6 {[%clk 0:00:28.7]} 36. Rc7
{[%clk 0:00:46.1]} 36... Rf7 {[%clk 0:00:15.4]} 37. Rxf7+ {[%clk 0:00:40.8]}
37... Kxf7 {[%clk 0:00:16.3]} 38. Rc1 {[%clk 0:00:39.9]} 38... Nd2+ {[%clk
0:00:16.8]} 39. Ke3 {[%clk 0:00:34.8]} 39... Nc4+ {[%clk 0:00:16.2]} 40. Kd4
{[%clk 0:00:35.3]} 40... Nxa5 {[%clk 0:00:15.5]} 41. Rc7+ {[%clk 0:00:32.2]}
41... Kf6 {[%clk 0:00:13.9]} 42. Nd3 {[%clk 0:00:31.8]} 42... Nc6+ {[%clk
0:00:02.9]} 43. Kc5 {[%clk 0:00:31.6]} 43... Ne7 {[%clk 0:00:01.7]} 44. Nf4
{[%clk 0:00:26.1]} 44... g5 {[%clk 0:00:00.9]} 45. Nh5+ {[%clk 0:00:26.3]} 45...
Kg6 {[%clk 0:00:01.3]} 46. Rxe7 {[%clk 0:00:26.8]} 46... Bb3 {[%clk 0:00:01.3]}
47. Ng3 {[%clk 0:00:23.7]} 47... h5 {[%clk 0:00:02]} 48. Rxb7 {[%clk 0:00:23.2]}
48... Bd1 {[%clk 0:00:02.2]} 49. Rb6+ {[%clk 0:00:23.5]} 49... Kg7 {[%clk
0:00:02.9]} 50. Nxf5+ {[%clk 0:00:23.9]} 50... Kf7 {[%clk 0:00:03.7]} 51. Kd4
{[%clk 0:00:22.3]} 51... h4 {[%clk 0:00:03.9]} 52. Ke5 {[%clk 0:00:22.6]} 52...
a5 {[%clk 0:00:03.6]} 53. Rf6+ {[%clk 0:00:20.7]} 53... Ke8 {[%clk 0:00:03.8]}
54. Kd6 {[%clk 0:00:20.9]} 54... Bb3 {[%clk 0:00:03.3]} 55. Ng7+ {[%clk
0:00:21.3]} 1-0

[Event "Late-Titled-Tuesday-Blitz-May-07-2024"]
[Site "Chess.com"]
[Date "2024.05.07"]
[Round "4"]
[White "maracayo"]
[Black "ChadBiryani"]
[Result "0-1"]
[WhiteElo "2366"]
[BlackElo "2538"]
[TimeControl "180+1"]
[EndTime "14:39:24 PDT"]
[Termination "ChadBiryani won on time"]

1. e4 {[%clk 0:02:59.3]} 1... c5 {[%clk 0:02:58.8]} 2. Nf3 {[%clk 0:02:59.1]}
2... d6 {[%clk 0:02:59.4]} 3. d3 {[%clk 0:02:59.1]} 3... g6 {[%clk 0:02:58.7]}
4. Nbd2 {[%clk 0:02:59.7]} 4... Bg7 {[%clk 0:02:59.1]} 5. Be2 {[%clk 0:03:00]}
5... Nc6 {[%clk 0:02:59.8]} 6. O-O {[%clk 0:03:00.4]} 6... e6 {[%clk 0:03:00.5]}
7. h3 {[%clk 0:03:00.8]} 7... Nge7 {[%clk 0:03:01.1]} 8. c3 {[%clk 0:03:01.4]}
8... O-O {[%clk 0:03:01.6]} 9. Re1 {[%clk 0:03:01.9]} 9... b5 {[%clk 0:03:02.1]}
10. Bf1 {[%clk 0:03:01.8]} 10... a5 {[%clk 0:03:02.6]} 11. a4 {[%clk 0:02:58.6]}
11... b4 {[%clk 0:03:02.9]} 12. Qc2 {[%clk 0:02:57.9]} 12... Rb8 {[%clk
0:03:02.1]} 13. Nc4 {[%clk 0:02:56.8]} 13... d5 {[%clk 0:02:59.7]} 14. exd5
{[%clk 0:02:51.3]} 14... exd5 {[%clk 0:02:59]} 15. Nce5 {[%clk 0:02:50.4]} 15...
Bf5 {[%clk 0:02:56.9]} 16. Bf4 {[%clk 0:02:48.7]} 16... Rb7 {[%clk 0:02:51]} 17.
Rad1 {[%clk 0:02:35.8]} 17... Qb6 {[%clk 0:02:27.1]} 18. g4 {[%clk 0:01:59.4]}
18... Bc8 {[%clk 0:02:24]} 19. d4 {[%clk 0:01:50.6]} 19... c4 {[%clk 0:02:18]}
20. Nxc6 {[%clk 0:01:42.4]} 20... Nxc6 {[%clk 0:02:17.3]} 21. Ne5 {[%clk
0:01:42.7]} 21... Nxe5 {[%clk 0:01:57]} 22. Bxe5 {[%clk 0:01:41.7]} 22... bxc3
{[%clk 0:01:57.6]} 23. bxc3 {[%clk 0:01:32.9]} 23... Qb3 {[%clk 0:01:58.2]} 24.
Qd2 {[%clk 0:01:29]} 24... Qxa4 {[%clk 0:01:56.6]} 25. Ra1 {[%clk 0:01:08.7]}
25... Qb5 {[%clk 0:01:45.4]} 26. Bd6 {[%clk 0:00:58.1]} 26... Rd8 {[%clk
0:01:42.6]} 27. Bc5 {[%clk 0:00:57.8]} 27... Be6 {[%clk 0:01:38.6]} 28. Qg5
{[%clk 0:00:50.8]} 28... Ra8 {[%clk 0:01:35.6]} 29. Bg2 {[%clk 0:00:40.1]} 29...
Qd7 {[%clk 0:01:35]} 30. Re2 {[%clk 0:00:20.2]} 30... a4 {[%clk 0:01:17.2]} 31.
Rea2 {[%clk 0:00:19.2]} 31... Rb3 {[%clk 0:01:13]} 32. Qe3 {[%clk 0:00:16.1]}
32... h6 {[%clk 0:01:04.3]} 33. Bf3 {[%clk 0:00:15.9]} 33... Re8 {[%clk
0:00:58.3]} 34. Qd2 {[%clk 0:00:14.6]} 34... h5 {[%clk 0:00:54.1]} 35. Rxa4
{[%clk 0:00:11.9]} 35... hxg4 {[%clk 0:00:53.8]} 36. Ra7 {[%clk 0:00:11.3]}
36... Rb7 {[%clk 0:00:53.3]} 37. Rxb7 {[%clk 0:00:10.6]} 37... Qxb7 {[%clk
0:00:53.8]} 38. hxg4 {[%clk 0:00:10.7]} 38... Qd7 {[%clk 0:00:49.2]} 39. Qf4
{[%clk 0:00:10.9]} 39... Rb8 {[%clk 0:00:43.3]} 40. Ra7 {[%clk 0:00:10.7]} 40...
Qb5 {[%clk 0:00:35.4]} 41. Rc7 {[%clk 0:00:08.4]} 41... Qb1+ {[%clk 0:00:30.1]}
42. Kg2 {[%clk 0:00:08.4]} 42... Qd3 {[%clk 0:00:30.8]} 43. Bb4 {[%clk
0:00:08.2]} 43... Ra8 {[%clk 0:00:29.1]} 44. Rb7 {[%clk 0:00:05.9]} 44... Ra1
{[%clk 0:00:17.2]} 45. Rb5 {[%clk 0:00:06.1]} 45... Qf1+ {[%clk 0:00:16.8]} 46.
Kg3 {[%clk 0:00:06.4]} 46... Kh7 {[%clk 0:00:14.5]} 47. Bg2 {[%clk 0:00:04.7]}
47... Qd3+ {[%clk 0:00:13.6]} 48. Qf3 {[%clk 0:00:03.5]} 48... Qd2 {[%clk
0:00:10.7]} 49. Rb8 {[%clk 0:00:01.3]} 49... Bh6 {[%clk 0:00:09]} 0-1

[Event "Late-Titled-Tuesday-Blitz-May-07-2024"]
[Site "Chess.com"]
[Date "2024.05.07"]
[Round "4"]
[White "ubdip"]
[Black "brouetoscope"]
[Result "0-1"]
[WhiteElo "2508"]
[BlackElo "2332"]
[TimeControl "180+1"]
[EndTime "14:39:24 PDT"]
[Termination "brouetoscope won on time"]

1. c4 {[%clk 0:02:56.5]} 1... e5 {[%clk 0:02:59.3]} 2. Nc3 {[%clk 0:02:57.4]}
2... Nf6 {[%clk 0:02:58]} 3. e3 {[%clk 0:02:56.8]} 3... Bb4 {[%clk 0:02:57.5]}
4. Qc2 {[%clk 0:02:55.7]} 4... Bxc3 {[%clk 0:02:55.2]} 5. Qxc3 {[%clk
0:02:55.4]} 5... Nc6 {[%clk 0:02:54.6]} 6. Nf3 {[%clk 0:02:53.8]} 6... d6 {[%clk
0:02:52]} 7. d4 {[%clk 0:02:49.1]} 7... Qe7 {[%clk 0:02:39.6]} 8. d5 {[%clk
0:02:46]} 8... Nb8 {[%clk 0:02:38.7]} 9. h3 {[%clk 0:02:36.5]} 9... O-O {[%clk
0:02:37.6]} 10. Nd2 {[%clk 0:02:23.3]} 10... a5 {[%clk 0:02:32]} 11. a3 {[%clk
0:02:09.2]} 11... a4 {[%clk 0:02:29.5]} 12. Qc2 {[%clk 0:02:07.6]} 12... Nfd7
{[%clk 0:02:25.1]} 13. Bd3 {[%clk 0:01:59.8]} 13... g6 {[%clk 0:02:19.9]} 14.
O-O {[%clk 0:01:43.8]} 14... Nc5 {[%clk 0:02:16.1]} 15. Kh2 {[%clk 0:01:20.1]}
15... f5 {[%clk 0:02:00.5]} 16. e4 {[%clk 0:01:14]} 16... f4 {[%clk 0:01:54.1]}
17. Be2 {[%clk 0:01:13.2]} 17... Nbd7 {[%clk 0:01:49.5]} 18. Bf3 {[%clk
0:01:07.6]} 18... b6 {[%clk 0:01:27.4]} 19. Nb1 {[%clk 0:01:03.4]} 19... Nf6
{[%clk 0:01:26.4]} 20. Nc3 {[%clk 0:01:02.1]} 20... h5 {[%clk 0:01:20.7]} 21.
Qe2 {[%clk 0:00:40.8]} 21... Rf7 {[%clk 0:01:11.4]} 22. Bd2 {[%clk 0:00:38.8]}
22... Rh7 {[%clk 0:01:10.8]} 23. g3 {[%clk 0:00:33.1]} 23... g5 {[%clk 0:01:08]}
24. Bg2 {[%clk 0:00:28.6]} 24... Bd7 {[%clk 0:00:54.2]} 25. Rae1 {[%clk
0:00:27.7]} 25... Kh8 {[%clk 0:00:54.1]} 26. Kg1 {[%clk 0:00:11]} 26... Rg8
{[%clk 0:00:53.3]} 27. Qd1 {[%clk 0:00:08.4]} 27... Nd3 {[%clk 0:00:37.7]} 28.
Nxa4 {[%clk 0:00:06.2]} 28... Nxe1 {[%clk 0:00:35.2]} 29. Rxe1 {[%clk
0:00:05.7]} 29... g4 {[%clk 0:00:27.6]} 30. h4 {[%clk 0:00:05.7]} 30... f3
{[%clk 0:00:25.4]} 31. Bf1 {[%clk 0:00:05.6]} 31... Ra8 {[%clk 0:00:23.3]} 32.
Nc3 {[%clk 0:00:05.6]} 32... Be8 {[%clk 0:00:20.6]} 33. Bd3 {[%clk 0:00:05.3]}
33... Nd7 {[%clk 0:00:20.1]} 34. Bg5 {[%clk 0:00:05.1]} 34... Qg7 {[%clk
0:00:19.2]} 35. Bc2 {[%clk 0:00:03.7]} 35... Qg6 {[%clk 0:00:10.2]} 36. Qc1
{[%clk 0:00:03]} 36... Rf7 {[%clk 0:00:08.9]} 37. b4 {[%clk 0:00:02.8]} 37...
Kh7 {[%clk 0:00:07.7]} 38. Qb2 {[%clk 0:00:02.8]} 38... Nb8 {[%clk 0:00:05.4]}
39. a4 {[%clk 0:00:02.4]} 39... Bd7 {[%clk 0:00:04.5]} 40. Ra1 {[%clk
0:00:02.1]} 40... Qg8 {[%clk 0:00:04]} 41. a5 {[%clk 0:00:00.5]} 41... Qc8
{[%clk 0:00:03.2]} 0-1